bitfinex/quotes_ETHUSD_20240731
["timestamp","ask_amount","ask_price","bid_price","bid_amount"]
[1722432866040,2.99043,3344.0,3343.4,2.99096]
[1722432866204,2.99043,3344.0,3343.5,2.99085]
[1722432866409,2.99017,3344.3,3343.6,0.05980667]
[1722432866811,2.99017,3344.3,3343.6,3.05053667]
[1722432866994,2.99054,3343.9,3343.3,2.99102]
[1722432867639,2.99034,3344.1,3343.4,0.05981018]
[1722432867838,2.2555,3344.5,3343.2,3.0]
[1722432868023,2.99025,3344.2,3343.3,2.99103]
[1722432868222,2.99035,3344.1,3343.5,5.98161]
[1722432868411,2.99035,3344.1,3343.6,3.05057586]
[1722432868607,2.9902,3344.3,3343.6,3.05057586]
[1722432868937,2.99095,3343.5,3342.8,2.99143]
[1722432869335,2.99097,3343.4,3342.9,3.02766239]
[1722432869511,2.99097,3343.4,3342.9,0.03634239]
[1722432869831,2.99106,3343.3,3342.9,0.03634239]
[1722432870043,2.99125,3343.1,3342.9,0.03634239]
[1722432870248,2.99082,3343.6,3341.8,2.99238]
[1722432870454,2.99156,3342.8,3342.2,2.99203]
[1722432870739,2.99135,3343.0,3342.3,0.05982972]
[1722432870904,2.99117,3343.2,3342.6,2.99167]
[1722432871108,2.99108,3343.3,3342.7,3.0513448]
[1722432871423,2.99108,3343.3,3342.6,2.99167]
[1722432871424,2.99108,3343.3,3342.8,0.0964019]
[1722432871598,2.99115,3343.2,3342.8,0.03657997]
[1722432871797,7.41,3343.4,3342.8,3.05130247]
[1722432872040,10.40098,3343.4,3342.8,3.05125247]
[1722432872337,10.40097,3343.4,3342.9,2.99135]
[1722432872549,2.99097,3343.4,3342.9,3.02793686]
[1722432873050,2.99094,3343.5,3343.0,0.05982195]
[1722432873347,2.99097,3343.4,3342.9,0.03658686]
[1722432873555,2.99097,3343.4,3342.6,2.99164]
[1722432873702,2.4336,3343.7,3343.0,0.03675211]
[1722432873703,2.99123,3343.1,3343.0,0.03675211]
[1722432874046,2.99137,3343.0,3342.4,2.99184]
[1722432874217,2.99124,3343.1,3342.4,2.99184]
[1722432874536,2.99139,3343.0,3342.4,2.99184]
[1722432874738,2.99091,3343.5,3342.3,3.0]
[1722432874951,2.99084,3343.6,3342.7,2.99154]
[1722432875096,2.99094,3343.5,3342.9,2.99136]
[1722432875299,2.99064,3343.8,3343.0,2.99126]
[1722432875509,2.99075,3343.7,3343.1,2.99122]
[1722432875900,2.99047,3344.0,3343.2,3.05089382]
[1722432876098,2.3391,3344.3,3343.3,0.05980855]
[1722432876334,5.32932,3344.3,3343.4,2.99092]
[1722432876539,2.99034,3344.1,3343.5,3.05066447]
[1722432876743,2.99053,3343.9,3343.4,2.99095]
[1722432876945,2.99067,3343.8,3343.2,2.99109]
[1722432877114,2.9907,3343.7,3343.2,2.99109]
[1722432877323,2.9909,3343.5,3343.3,0.2]
[1722432877703,5.98192,3343.4,3343.3,0.2]
[1722432877951,2.99086,3343.6,3343.3,0.2]
[1722432878244,2.99096,3343.4,3343.3,0.2]
[1722432878462,5.98192,3343.4,3343.3,0.2]
[1722432879038,2.99096,3343.4,3343.3,0.2]
[1722432879619,2.99096,3343.4,3343.3,0.23675211]
[1722432879832,2.99096,3343.4,3343.3,0.2]
[1722432880636,2.99096,3343.4,3343.3,0.23675211]
[1722432881058,8.32462,3343.4,3343.3,0.23675211]
[1722432881206,11.31558,3343.4,3343.3,0.4]
[1722432881406,8.32462,3343.4,3343.3,0.4]
[1722432881852,11.31558,3343.4,3343.3,0.4]
[1722432882145,8.32462,3343.4,3343.3,0.4]
[1722432882909,5.33366,3343.4,3343.3,0.4]
[1722432883119,8.32462,3343.4,3343.3,0.4]
[1722432883317,5.33366,3343.4,3343.3,0.4]
[1722432883533,8.32462,3343.4,3343.3,0.4]
[1722432884048,2.99091,3343.5,3343.3,0.4]
[1722432884246,2.99074,3343.7,3343.3,0.4]
[1722432884450,2.99079,3343.6,3343.4,0.03683821]
[1722432884767,2.99062,3343.8,3343.3,0.45981659]
[1722432884923,2.99027,3344.2,3343.5,0.03683821]
[1722432885109,2.99027,3344.2,3343.3,0.45981659]
[1722432885110,2.9905,3344.0,3343.4,2.99089]
[1722432885521,2.9905,3344.0,3343.5,0.03683821]
[1722432886124,2.99029,3344.2,3343.5,3.02765821]
[1722432886333,2.99035,3344.1,3343.6,2.99078]
[1722432886536,2.99024,3344.3,3343.7,2.99069]
[1722432886747,2.99017,3344.3,3343.8,0.09664428]
[1722432887353,2.18673926,3344.7,3343.8,0.09664428]
[1722432887556,12.73929,3344.8,3344.0,2.99037]
[1722432887753,12.73929,3344.8,3344.2,2.99024]
[1722432887754,5.32929,3344.8,3344.2,2.99024]
[1722432887920,2.98979,3344.8,3344.3,0.0597966]
[1722432888236,2.98991,3344.6,3343.8,2.99057]
[1722432888437,2.99012,3344.4,3343.8,2.99057]
[1722432888763,2.98991,3344.6,3344.0,2.99041]
[1722432889270,2.99013,3344.4,3344.1,0.03618019]
[1722432889453,2.99025,3344.2,3344.1,0.03618019]
[1722432889653,2.4178,3344.2,3343.3,0.4]
[1722432889859,2.99037,3344.1,3343.3,0.4]
[1722432890027,2.99019,3344.3,3343.6,2.99073]
[1722432890423,2.99067,3343.8,3343.3,0.4]
[1722432890922,2.99051,3344.0,3343.3,0.4]
[1722432891127,9.59926831,3344.4,3343.5,2.99082]
[1722432891342,2.99039,3344.1,3343.5,2.99082]
[1722432891539,2.99057,3343.9,3343.3,3.39099]
[1722432891842,2.99057,3343.9,3343.4,2.99096]
[1722432892155,2.9907,3343.7,3343.3,0.4]
[1722432892347,2.99095,3343.5,3343.3,0.4]
[1722432893268,2.99065,3343.8,3343.3,0.4]
[1722432893570,2.99051,3344.0,3343.3,3.39098]
[1722432894072,2.9905,3344.0,3343.3,3.39098]
[1722432894277,2.99053,3343.9,3343.3,3.39098]
[1722432894777,2.99026,3344.2,3343.5,2.99081]
[1722432894980,2.99021,3344.3,3343.7,2.99069]
[1722432895180,2.99011,3344.4,3343.8,0.09428517]
[1722432895344,2.99011,3344.4,3343.8,3.08486517]
[1722432895686,2.99022,3344.3,3343.8,0.09428517]
[1722432895860,2.99011,3344.4,3343.8,3.08488517]
[1722432896064,2.99016,3344.3,3343.8,0.09428517]
[1722432896383,2.4178,3344.7,3343.8,3.08481517]
[1722432896384,5.18040546,3344.5,3343.8,3.08481517]
[1722432896547,2.99021,3344.3,3343.8,0.03448138]
[1722432896753,2.99021,3344.3,3343.3,0.4]
[1722432896754,2.99048,3344.0,3343.3,3.391]
[1722432896966,2.99028,3344.2,3343.5,2.99082]
[1722432897280,2.99028,3344.2,3343.6,2.99078]
[1722432897587,2.9904,3344.1,3343.6,0.03441597]
[1722432897884,5.40677,3343.8,3343.3,0.4]
[1722432898064,2.99096,3343.4,3343.3,0.4]
[1722432898949,2.99094,3343.5,3343.3,0.4]
[1722432899345,8.17265364,3343.7,3343.4,0.03221117]
[1722432899668,2.99071,3343.7,3343.3,0.4]
[1722432899859,2.99087,3343.5,3343.3,0.4]
[1722432900449,5.98192,3343.4,3343.3,0.4]
[1722432900654,11.16497106,3343.4,3343.3,0.4]
[1722432900839,8.97288,3343.4,3343.3,0.4]
[1722432901040,5.98192,3343.4,3343.3,0.4]
[1722432901435,5.18337044,3343.4,3343.3,0.4]
[1722432901753,2.9908,3343.6,3343.3,0.4]
[1722432902085,2.99085,3343.6,3343.4,0.03124158]
[1722432902389,2.19241044,3343.7,3343.4,0.03124158]
[1722432902540,5.18307044,3343.8,3343.4,0.03124158]
[1722432902874,2.99067,3343.8,3343.3,0.4]
[1722432903086,2.19241044,3343.9,3343.3,0.4]
[1722432903087,2.99076,3343.7,3343.3,0.4]
[1722432903236,2.99057,3343.9,3343.3,3.39105]
[1722432903437,2.4303,3344.2,3343.8,2.9906]
[1722432903438,2.19315619,3344.2,3343.8,2.9906]
[1722432903634,2.19315619,3344.3,3343.8,2.9906]
[1722432903885,2.19315619,3344.3,3343.9,3.0503154]
[1722432904036,2.99,3344.5,3343.9,3.0503154]
[1722432904232,5.18305619,3344.6,3343.9,3.0503154]
[1722432904482,2.9899,3344.6,3344.0,3.02155169]
[1722432904646,2.9899,3344.6,3344.0,0.03114169]
[1722432904647,2.98999,3344.5,3344.0,0.03114169]
[1722432904837,2.99019,3344.3,3344.0,0.03114169]
[1722432905038,2.99019,3344.3,3343.5,5.48044]
[1722432905299,2.99019,3344.3,3344.1,0.03106249]
[1722432905578,2.19315619,3344.6,3343.9,2.99046]
[1722432905747,2.98999,3344.5,3344.2,0.03106249]
[1722432905954,2.99007,3344.4,3343.6,38.0]
[1722432906149,2.99007,3344.4,3344.3,0.03106249]
[1722432906368,5.58192363,3344.6,3343.9,2.9905]
[1722432906675,3.11916415,3344.9,3344.1,2.99028]
[1722432906676,2.19405513,3344.4,3344.1,2.99028]
[1722432906880,2.19405513,3344.5,3344.0,0.03101082]
[1722432907034,2.19405513,3344.5,3343.9,2.99048]
[1722432907349,2.19405513,3344.5,3344.1,0.03093851]
[1722432907548,5.18400513,3344.6,3344.0,2.99042]
[1722432907792,2.19405513,3344.6,3344.2,0.03093851]
[1722432907977,5.18386513,3344.7,3344.1,3.05006887]
[1722432908135,2.19405513,3344.6,3344.3,0.03093851]
[1722432908338,2.19405513,3344.6,3343.6,38.0]
[1722432908339,2.19405513,3344.5,3344.2,0.03091786]
[1722432908565,2.19405513,3344.6,3343.8,2.99054]
[1722432908734,2.98998,3344.5,3344.3,0.03091786]
[1722432908939,5.18403513,3344.5,3343.8,2.99052]
[1722432909135,2.19405513,3344.7,3344.2,2.99019]
[1722432909340,2.98977,3344.8,3344.2,2.99022]
[1722432909536,2.98977,3344.8,3344.0,2.99038]
[1722432909537,2.19362192,3344.7,3344.3,0.03090064]
[1722432909780,2.60129631,3345.0,3344.3,3.02104064]
[1722432909781,2.98962,3344.9,3344.3,3.02104064]
[1722432909944,5.18324192,3344.9,3344.4,0.03090064]
[1722432910135,2.19362192,3344.9,3344.4,2.99004]
[1722432910336,2.99963042,3345.0,3344.5,0.05979671]
[1722432910586,2.98964,3344.9,3344.5,0.03090064]
[1722432910951,2.98967,3344.9,3344.0,2.99037]
[1722432911277,0.01008042,3345.0,3343.9,35.0]
[1722432911278,2.99011,3344.4,3343.9,35.0]
[1722432911465,2.99011,3344.4,3344.1,0.03090064]
[1722432911466,2.99026,3344.2,3344.1,0.03090064]
[1722432911667,2.99026,3344.2,3343.8,0.2]
[1722432911864,2.99026,3344.2,3344.1,0.03090064]
[1722432912098,2.99017,3344.3,3343.8,0.2]
[1722432912239,2.99036,3344.1,3343.8,0.2]
[1722432912439,2.99026,3344.2,3343.8,0.2]
[1722432913089,2.99048,3344.0,3343.8,0.2]
[1722432913765,2.99029,3344.2,3343.8,0.2]
[1722432914079,2.99034,3344.1,3343.8,0.2]
[1722432914290,2.99052,3343.9,3343.8,0.2]
[1722432914598,8.17394943,3343.9,3343.8,0.2]
[1722432915379,8.17423633,3343.9,3343.8,0.2]
[1722432915600,2.19314266,3343.9,3343.8,0.2]
[1722432915895,5.18326266,3344.4,3343.8,3.3906]
[1722432916047,2.99017,3344.3,3343.8,0.4]
[1722432916245,2.19314266,3344.6,3343.9,0.05980515]
[1722432916246,2.98993,3344.6,3343.9,0.05980515]
[1722432916562,2.99021,3344.3,3343.9,0.05980515]
[1722432916867,2.99025,3344.2,3343.8,0.4]
[1722432917192,2.9905,3344.0,3343.8,0.4]
[1722432917852,2.99034,3344.1,3343.8,0.4]
[1722432918195,2.99043,3344.0,3343.8,0.4]
[1722432919044,5.98104,3343.9,3343.8,0.4]
[1722432919450,11.56225836,3343.9,3343.8,0.4]
[1722432919646,8.57173836,3343.9,3343.8,0.4]
[1722432919840,8.57225602,3343.9,3343.8,0.6]
[1722432921083,2.99052,3343.9,3343.8,0.6]
[1722432921291,2.19368342,3344.1,3343.8,0.6]
[1722432921669,5.44192,3344.5,3343.9,2.9905]
[1722432921670,2.99002,3344.5,3343.9,2.9905]
[1722432922118,2.19324891,3344.6,3343.9,2.9905]
[1722432922119,2.19324891,3344.6,3344.0,0.02886477]
[1722432922317,2.19324891,3344.6,3343.9,0.05980568]
[1722432922318,2.99009,3344.4,3343.9,0.05980568]
[1722432922485,2.99003,3344.5,3344.1,0.02886477]
[1722432922681,2.19324891,3344.5,3343.8,0.6]
[1722432922881,8.17366891,3344.3,3344.2,0.02886477]
[1722432923096,2.99021,3344.3,3343.8,0.6]
[1722432923284,5.18344566,3344.2,3343.8,0.6]
[1722432923488,2.99026,3344.2,3343.9,0.02886477]
[1722432923684,5.98086,3344.0,3343.9,0.02886477]
[1722432923900,2.99043,3344.0,3343.9,0.22886477]
[1722432924085,2.99043,3344.0,3343.9,0.2]
[1722432924487,2.19345338,3344.2,3343.9,0.22886477]
[1722432924695,2.99043,3344.0,3343.9,0.22886477]
[1722432924914,5.98086,3344.0,3343.9,0.22886477]
[1722432925276,5.98086,3344.0,3343.9,0.2]
[1722432925523,2.99043,3344.0,3343.9,0.2]
[1722432925892,5.1840589,3344.0,3343.9,0.22897141]
[1722432926088,2.1936289,3344.0,3343.9,0.22897141]
[1722432926295,2.99043,3344.0,3343.9,0.2]
[1722432926490,2.19363555,3344.1,3343.9,0.22897141]
[1722432926706,5.581332,3344.4,3343.9,0.22897141]
[1722432926707,2.19363555,3344.3,3343.9,0.22897141]
[1722432926913,5.18373555,3344.4,3343.9,0.22897141]
[1722432927109,5.18374555,3344.4,3343.9,0.2]
[1722432927313,2.9903,3344.2,3344.0,0.02897141]
[1722432927629,2.19363555,3344.3,3343.9,0.2]
[1722432927930,2.99011,3344.4,3343.9,0.2]
[1722432928222,5.18373936,3344.4,3343.9,0.4]
[1722432928424,5.18373936,3344.4,3344.0,0.02897141]
[1722432928827,2.99025,3344.2,3344.0,0.02897141]
[1722432930346,5.98068,3344.1,3344.0,0.02897141]
[1722432930832,5.98086,3344.0,3343.9,0.4]
[1722432932732,5.18525314,3344.0,3343.9,0.4]
[1722432933199,5.98086,3344.0,3343.9,0.4]
[1722432933805,5.58309745,3344.2,3343.9,0.4]
[1722432933994,2.19476221,3344.2,3343.9,3.39045]
[1722432934191,5.97989,3344.6,3344.0,2.99042]
[1722432934429,2.19452886,3344.5,3343.9,3.39051]
[1722432934594,2.99009,3344.4,3343.9,3.39051]
[1722432934790,2.19452886,3344.5,3344.0,3.1329484]
[1722432934997,2.19452886,3344.6,3344.0,3.1329484]
[1722432935191,5.18442886,3344.6,3344.0,3.1329484]
[1722432935395,5.18442886,3344.6,3344.0,0.1425384]
[1722432935650,2.19452886,3344.5,3344.0,2.99041]
[1722432935808,2.19452886,3344.5,3343.9,0.4]
[1722432935809,2.19452886,3344.6,3344.1,2.99027]
[1722432936008,9.60452886,3344.7,3344.2,3.1327784]
[1722432936544,12.59434886,3344.7,3344.2,0.1425384]
[1722432936746,9.60452886,3344.7,3344.3,2.9901]
[1722432936906,9.60452886,3344.7,3344.2,3.1327784]
[1722432936907,10.39981,3344.7,3344.2,3.1327784]
[1722432937230,10.39981,3344.7,3343.9,3.39045]
[1722432937231,2.99003,3344.5,3343.9,3.39045]
[1722432937438,2.99017,3344.3,3344.0,0.1424696]
[1722432937636,7.41,3344.7,3344.0,0.1424696]
[1722432937637,2.99026,3344.2,3344.0,0.1424696]
[1722432937838,2.99034,3344.1,3344.0,0.1424696]
[1722432938058,5.98068,3344.1,3344.0,0.1424696]
[1722432938544,5.98086,3344.0,3343.9,0.4]
[1722432938744,2.99043,3344.0,3343.9,0.4]
[1722432938927,5.1850271,3344.0,3343.9,0.4]
[1722432939139,10.5056571,3344.0,3343.9,0.4]
[1722432939315,10.5056571,3344.0,3343.8,0.6]
[1722432939316,5.3302,3344.0,3343.8,0.6]
[1722432939514,8.98104,3343.9,3343.8,0.6]
[1722432939938,14.96208,3343.9,3343.8,0.6]
[1722432941227,11.97156,3343.9,3343.8,0.6]
[1722432941761,18.07198499,3343.9,3343.8,0.6]
[1722432941932,14.96208,3343.9,3343.8,0.6]
[1722432942343,11.97156,3343.9,3343.8,0.6]
[1722432943714,8.98104,3343.9,3343.8,0.6]
[1722432943957,11.97156,3343.9,3343.8,0.6]
[1722432944191,11.57161577,3343.9,3343.8,0.6]
[1722432944465,11.97156,3343.9,3343.8,0.6]
[1722432945467,14.96208,3343.9,3343.8,0.6]
[1722432945814,2.99177,3342.5,3342.1,35.0]
[1722432946016,2.99168,3342.6,3342.2,0.13828805]
[1722432946260,2.99188,3342.4,3341.7,2.99244]
[1722432946466,2.99178,3342.5,3341.9,2.9923]
[1722432946621,2.99178,3342.5,3341.8,0.13828805]
[1722432946826,2.9919,3342.4,3341.8,0.13828805]
[1722432947028,2.9921,3342.2,3341.8,0.13828805]
[1722432947276,2.9923,3341.9,3341.8,0.13828805]
[1722432947566,2.99222,3342.0,3341.4,37.99269]
[1722432947567,2.99223,3342.0,3341.4,37.99269]
[1722432947769,2.99223,3342.0,3341.8,0.13367845]
[1722432947925,2.99208,3342.2,3341.4,37.99269]
[1722432948272,2.99208,3342.2,3341.5,2.99259]
[1722432948455,2.99208,3342.2,3341.5,3.12626845]
[1722432948991,2.99213,3342.1,3341.5,3.12626845]
[1722432949143,2.99187,3342.4,3341.7,2.99248]
[1722432949346,2.99187,3342.4,3341.8,2.99232]
[1722432949773,2.99187,3342.4,3341.9,0.13367845]
[1722432949934,5.98381,3342.4,3341.9,0.13367845]
[1722432950278,7.41,3342.5,3341.9,0.13367845]
[1722432950431,7.41,3342.5,3342.1,2.99205]
[1722432950781,2.99159,3342.7,3342.2,0.13435715]
[1722432950975,2.99184,3342.5,3342.2,0.13435715]
[1722432951142,2.99173,3342.6,3342.2,0.13435715]
[1722432951344,2.99172,3342.6,3342.0,2.99219]
[1722432951578,2.99172,3342.6,3342.3,0.13435715]
[1722432951825,2.99151,3342.8,3342.2,2.99198]
[1722432952096,2.99164,3342.7,3342.0,8.4850594]
[1722432952300,2.99173,3342.6,3342.3,0.13435715]
[1722432952595,2.99186,3342.4,3341.7,2.99243]
[1722432952793,5.9838,3342.4,3341.8,3.0]
[1722432953015,5.9838,3342.4,3341.6,2.261]
[1722432953016,2.99211,3342.2,3341.6,2.261]
[1722432953289,2.99211,3342.2,3341.5,2.99265]
[1722432953488,2.99215,3342.1,3341.5,2.99263]
[1722432953848,2.99215,3342.1,3341.4,2.99268]
[1722432954248,2.99215,3342.1,3341.5,2.99261]
[1722432954449,2.99215,3342.1,3341.6,2.99256]
[1722432954672,2.99195,3342.3,3341.7,2.99243]
[1722432954847,10.4018,3342.5,3341.0,2.99311]
[1722432954848,2.18937041,3342.5,3341.0,2.99311]
[1722432955052,5.98523,3341.6,3341.0,2.99311]
[1722432955247,2.18937041,3342.4,3340.5,3.29392]
[1722432955248,2.99276,3341.4,3340.5,3.29392]
[1722432955497,2.99289,3341.3,3340.7,2.99337]
[1722432955788,2.99293,3341.2,3340.6,0.00092773]
[1722432955997,2.99279,3341.4,3340.6,2.99346]
[1722432956150,2.99289,3341.3,3340.7,2.9970252]
[1722432956355,2.99262,3341.6,3340.7,2.99338]
[1722432956356,2.99274,3341.5,3340.7,2.99338]
[1722432956551,2.99275,3341.4,3340.7,2.99338]
[1722432956861,2.99275,3341.4,3340.8,2.99329]
[1722432957063,2.993,3341.2,3340.6,2.99347]
[1722432957274,2.99261,3341.6,3340.3,35.0]
[1722432957475,2.99242,3341.8,3341.0,2.9931]
[1722432957650,2.99225,3342.0,3341.1,0.05985576]
[1722432957846,2.99205,3342.2,3341.1,0.05985576]
[1722432957847,2.99205,3342.2,3341.4,2.99268]
[1722432958088,2.99227,3342.0,3341.4,2.99268]
[1722432958273,2.99205,3342.2,3341.5,2.99266]
[1722432958610,2.99205,3342.2,3340.8,5.31235]
[1722432958611,2.3336,3342.7,3341.9,2.99223]
[1722432958758,2.99167,3342.7,3341.9,2.99223]
[1722432959174,7.51323486,3343.2,3341.9,2.99223]
[1722432959175,2.99182,3342.5,3341.9,2.99223]
[1722432959607,2.99182,3342.5,3342.0,0.12097137]
[1722432959766,2.99162,3342.7,3342.0,3.11319137]
[1722432959964,2.99177,3342.5,3342.0,3.11311137]
[1722432960170,2.99186,3342.4,3342.0,0.12097137]
[1722432960709,5.98259,3343.1,3342.2,2.992]
[1722432960993,5.98259,3343.1,3342.2,5.98394]
[1722432960994,2.99127,3343.1,3342.2,5.98394]
[1722432961203,2.99152,3342.8,3342.2,2.99196]
[1722432961401,2.9916,3342.7,3342.3,0.12097137]
[1722432961809,2.99144,3342.9,3342.0,0.05983788]
[1722432961986,2.99168,3342.6,3342.4,0.12097137]
[1722432962167,2.99159,3342.7,3342.0,3.05197786]
[1722432962370,2.99159,3342.7,3342.5,0.12097137]
[1722432962561,2.99179,3342.5,3341.9,2.99223]
[1722432963404,2.99197,3342.3,3341.7,2.99243]
[1722432963612,2.3336,3343.2,3341.3,2.99278]
[1722432963613,2.99209,3342.2,3341.3,2.99278]
[1722432963811,2.99223,3342.0,3341.4,2.99269]
[1722432963974,2.99209,3342.2,3341.5,2.99265]
[1722432964181,2.99219,3342.1,3341.5,2.99265]
[1722432964504,2.99227,3342.0,3341.3,2.99276]
[1722432964667,2.99228,3342.0,3341.3,2.99276]
[1722432965024,10.921,3342.3,3340.5,2.99351]
[1722432965160,2.99285,3341.3,3340.5,2.99351]
[1722432965362,2.99285,3341.3,3340.5,2.99349]
[1722432965662,2.99285,3341.3,3340.3,5.37211]
[1722432965663,2.99303,3341.1,3340.3,2.99368]
[1722432965858,2.99318,3341.0,3340.3,2.99366]
[1722432966594,9.8902,3341.5,3340.3,2.99366]
[1722432966595,2.99297,3341.2,3340.3,2.99366]
[1722432966972,9.8902,3341.5,3340.1,2.99384]
[1722432966973,2.99317,3341.0,3340.2,2.99382]
[1722432967303,2.9933,3340.8,3339.9,2.99406]
[1722432967453,2.9933,3340.8,3340.0,2.99397]
[1722432967662,2.99321,3340.9,3340.1,2.99391]
[1722432968097,2.99312,3341.0,3340.4,2.99356]
[1722432968296,9.8902,3341.5,3340.0,2.99398]
[1722432968521,2.99345,3340.7,3340.0,2.99398]
[1722432968721,2.99367,3340.4,3339.4,3.29487]
[1722432968926,2.99384,3340.2,3339.4,2.99447]
[1722432969101,2.99367,3340.4,3338.9,2.9949]
[1722432969102,2.99367,3340.4,3339.7,2.99426]
[1722432969305,9.7971,3340.5,3339.7,2.99426]
[1722432969610,12.79068,3340.5,3339.9,2.99407]
[1722432969812,2.99368,3340.4,3339.7,2.99426]
[1722432970030,9.7971,3340.5,3339.7,2.99426]
[1722432970200,9.7971,3340.5,3339.9,2.99408]
[1722432970382,7.41,3340.5,3339.9,2.99408]
[1722432970583,7.41,3340.5,3340.0,0.05987892]
[1722432970822,5.35512,3341.1,3340.4,2.99365]
[1722432971040,10.40295,3341.2,3340.6,2.99341]
[1722432971338,10.40295,3341.2,3340.4,2.99362]
[1722432971641,10.40299,3341.2,3340.7,0.09878471]
[1722432971782,7.41,3341.2,3340.7,2.99335]
[1722432971988,7.41,3341.2,3340.3,0.05986861]
[1722432971989,7.41,3341.2,3340.8,3.09204471]
[1722432972305,7.41,3341.2,3341.0,2.99302]
[1722432972530,7.41,3341.2,3340.9,0.09868513]
[1722432972848,7.41,3341.2,3340.7,2.99331]
[1722432972985,10.40294,3341.2,3340.6,2.9934]
[1722432973187,2.99318,3341.0,3340.8,0.09854437]
[1722432973502,2.99326,3340.9,3340.3,2.99368]
[1722432973704,2.99322,3340.9,3340.3,2.99368]
[1722432974082,2.99322,3340.9,3340.2,2.99382]
[1722432974354,2.99322,3340.9,3340.3,2.99373]
[1722432974589,2.99311,3341.0,3340.4,2.99364]
[1722432975098,7.41,3341.2,3340.6,2.99346]
[1722432975284,7.41,3341.2,3341.1,2.99302]
[1722432975489,7.41,3341.8,3341.3,2.99279]
[1722432975696,7.41,3341.8,3341.2,2.99292]
[1722432975894,2.2891,3341.9,3340.6,0.05985861]
[1722432976138,2.99245,3341.8,3341.3,0.09890812]
[1722432976293,2.99228,3342.0,3341.2,2.9929]
[1722432976496,7.72323835,3342.1,3340.9,2.99314]
[1722432976497,2.99259,3341.6,3340.9,2.99314]
[1722432976722,2.99296,3341.2,3340.6,2.99346]
[1722432976945,2.9928,3341.4,3341.0,0.09890469]
[1722432977114,2.99302,3341.1,3340.3,2.9937]
[1722432977447,2.99302,3341.1,3340.5,2.99355]
[1722432977597,2.99288,3341.3,3340.6,2.99346]
[1722432977792,2.99294,3341.2,3340.3,2.99371]
[1722432977999,2.993,3341.2,3340.6,2.99345]
[1722432978401,2.2832,3341.5,3340.8,2.99328]
[1722432978402,2.99277,3341.4,3340.8,2.99328]
[1722432978633,5.27588,3341.5,3340.8,2.99328]
[1722432979255,5.27588,3341.5,3340.2,2.367]
[1722432979256,2.99308,3341.1,3340.4,2.99362]
[1722432979547,2.2832,3341.5,3339.7,5.3481]
[1722432979548,2.99348,3340.6,3339.7,5.3481]
[1722432979706,2.99362,3340.5,3339.8,2.99411]
[1722432980012,2.99362,3340.5,3339.7,2.9942]
[1722432980013,2.99376,3340.3,3339.7,2.9942]
[1722432980617,2.99376,3340.3,3339.8,2.99419]
[1722432980815,2.99358,3340.5,3339.7,2.9942]
[1722432981020,2.99385,3340.2,3339.5,2.9944]
[1722432981199,2.99365,3340.5,3339.7,2.99427]
[1722432981398,2.9938,3340.3,3339.7,2.99427]
[1722432981804,2.99383,3340.2,3339.6,2.99436]
[1722432982056,2.99394,3340.1,3339.3,2.9946]
[1722432982202,2.99402,3340.0,3339.5,2.99443]
[1722432982408,5.9933,3340.8,3339.6,2.9943]
[1722432982607,2.9935,3340.6,3340.0,2.99398]
[1722432983057,5.98705,3340.6,3340.0,2.99398]
[1722432983224,2.4589,3341.4,3340.2,2.99376]
[1722432983402,2.4589,3341.4,3340.0,2.99397]
[1722432983608,2.99336,3340.8,3340.0,2.99397]
[1722432983938,2.99336,3340.8,3339.9,0.05987936]
[1722432983939,2.99301,3341.2,3340.5,2.99356]
[1722432984138,2.99296,3341.2,3340.7,2.99335]
[1722432984305,2.99281,3341.4,3340.7,5.98667]
[1722432984505,2.99281,3341.4,3340.8,2.99323]
[1722432984734,2.99286,3341.3,3340.7,2.99338]
[1722432985524,2.99294,3341.2,3340.7,2.99338]
[1722432985738,2.99286,3341.3,3340.5,2.99352]
[1722432985935,2.99304,3341.1,3340.5,5.987]
[1722432986137,2.99327,3340.9,3340.3,2.99367]
[1722432986445,2.99339,3340.7,3340.1,2.99384]
[1722432986619,2.99339,3340.7,3339.9,2.99408]
[1722432986825,2.99358,3340.5,3339.9,2.99408]
[1722432987216,2.99367,3340.4,3339.6,2.3204]
[1722432987422,2.99358,3340.5,3339.8,2.99418]
[1722432987423,2.99376,3340.3,3339.8,2.99418]
[1722432987649,2.99376,3340.3,3339.7,2.99428]
[1722432988148,2.99358,3340.5,3339.1,2.2875]
[1722432988149,2.9937,3340.4,3339.8,2.99418]
[1722432988350,2.99378,3340.3,3339.6,2.99436]
[1722432988506,2.99378,3340.3,3339.9,0.09562927]
[1722432988707,2.99394,3340.1,3339.6,2.99436]
[1722432988965,2.99394,3340.1,3339.5,2.9944]
[1722432989325,2.99407,3340.0,3339.3,2.99458]
[1722432989524,2.9941,3339.9,3339.6,0.09562927]
[1722432989740,2.9941,3339.9,3339.4,2.99454]
[1722432990036,2.9941,3339.9,3339.7,0.09562927]
[1722432990037,2.99419,3339.8,3339.7,0.09562927]
[1722432990258,2.99419,3339.8,3339.2,2.99471]
[1722432990561,2.9941,3339.9,3339.3,0.09602754]
[1722432990915,2.99419,3339.8,3339.3,0.09602754]
[1722432991106,2.99419,3339.8,3339.2,2.99465]
[1722432991454,2.99407,3340.0,3339.4,0.09602754]
[1722432991653,2.99395,3340.1,3338.9,2.99497]
[1722432991869,10.40381,3340.3,3339.6,2.99428]
[1722432992241,10.71678614,3340.7,3340.1,2.99391]
[1722432992439,10.71678614,3340.7,3339.1,2.99476]
[1722432992440,2.99356,3340.5,3339.9,2.99404]
[1722432992758,2.99374,3340.3,3339.7,2.99428]
[1722432992955,2.99374,3340.3,3340.0,0.08966338]